[Event "Late-Titled-Tuesday-Blitz-September-26-2023"]
[Site "Chess.com"]
[Date "2023.09.26"]
[Round "4"]
[White "imdarealist"]
[Black "imdvb6307"]
[Result "0-1"]
[WhiteElo "2253"]
[BlackElo "2489"]
[TimeControl "180+1"]
[EndTime "14:38:42 PDT"]
[Termination "imdvb6307 won on time"]

1. d4 {[%clk 0:03:00.9]} 1... d5 {[%clk 0:02:58.5]} 2. Bf4 {[%clk 0:03:01.5]}
2... c6 {[%clk 0:02:57.8]} 3. e3 {[%clk 0:03:01.3]} 3... Bf5 {[%clk 0:02:57.8]}
4. c4 {[%clk 0:03:01.6]} 4... e6 {[%clk 0:02:57.6]} 5. Nc3 {[%clk 0:03:01.6]}
5... Nd7 {[%clk 0:02:57.2]} 6. Qb3 {[%clk 0:03:02.1]} 6... Qb6 {[%clk
0:02:57.2]} 7. c5 {[%clk 0:03:01.7]} 7... Qxb3 {[%clk 0:02:57.4]} 8. axb3 {[%clk
0:03:02.6]} 8... a6 {[%clk 0:02:58]} 9. b4 {[%clk 0:03:00.9]} 9... Rc8 {[%clk
0:02:58.3]} 10. Nf3 {[%clk 0:02:56.7]} 10... Be7 {[%clk 0:02:55.5]} 11. Nd2
{[%clk 0:02:54.9]} 11... Ngf6 {[%clk 0:02:54]} 12. h3 {[%clk 0:02:54.2]} 12...
h5 {[%clk 0:02:50.8]} 13. Nb3 {[%clk 0:02:53.4]} 13... Bd8 {[%clk 0:02:49.6]}
14. Na5 {[%clk 0:02:52.4]} 14... Bxa5 {[%clk 0:02:49.5]} 15. bxa5 {[%clk
0:02:53.1]} 15... O-O {[%clk 0:02:48.2]} 16. Ra3 {[%clk 0:02:51.9]} 16... e5
{[%clk 0:02:36.7]} 17. Bg3 {[%clk 0:02:49.8]} 17... exd4 {[%clk 0:02:21.5]} 18.
exd4 {[%clk 0:02:50.7]} 18... Rfe8+ {[%clk 0:02:21.2]} 19. Kd2 {[%clk
0:02:39.5]} 19... Nf8 {[%clk 0:02:17.9]} 20. Bd3 {[%clk 0:02:17.8]} 20... Bxd3
{[%clk 0:02:17.1]} 21. Kxd3 {[%clk 0:02:17.2]} 21... Ne4 {[%clk 0:02:12.9]} 22.
Nxe4 {[%clk 0:02:00.7]} 22... dxe4+ {[%clk 0:02:13]} 23. Ke3 {[%clk 0:01:55.4]}
23... Rcd8 {[%clk 0:02:09.7]} 24. Rb3 {[%clk 0:01:42.8]} 24... Rd7 {[%clk
0:02:09.2]} 25. Bd6 {[%clk 0:01:33.6]} 25... Ne6 {[%clk 0:01:55.6]} 26. h4
{[%clk 0:01:21.6]} 26... f5 {[%clk 0:01:54.9]} 27. g3 {[%clk 0:01:20.4]} 27...
Nd8 {[%clk 0:01:49.1]} 28. Rc1 {[%clk 0:01:04.3]} 28... Kf7 {[%clk 0:01:47.9]}
29. Kf4 {[%clk 0:00:58.5]} 29... g6 {[%clk 0:01:25]} 30. Rc4 {[%clk 0:00:46.5]}
30... Ke6 {[%clk 0:01:23.4]} 31. Rcb4 {[%clk 0:00:45.7]} 31... Kd5 {[%clk
0:01:15.2]} 32. Ke3 {[%clk 0:00:37.1]} 32... Rg8 {[%clk 0:01:10.6]} 33. Bf4
{[%clk 0:00:34.8]} 33... Rgg7 {[%clk 0:01:08.8]} 34. Bg5 {[%clk 0:00:34.2]}
34... Ne6 {[%clk 0:01:08.5]} 35. Bf6 {[%clk 0:00:33.6]} 35... Rgf7 {[%clk
0:01:08.2]} 36. Be5 {[%clk 0:00:32.9]} 36... Nxc5 {[%clk 0:00:57.2]} 37. dxc5
{[%clk 0:00:22.1]} 37... Kxe5 {[%clk 0:00:56.9]} 38. Rc3 {[%clk 0:00:21.7]}
38... f4+ {[%clk 0:00:50.5]} 39. Ke2 {[%clk 0:00:15.4]} 39... fxg3 {[%clk
0:00:37.3]} 40. Rxg3 {[%clk 0:00:16.3]} 40... Kf5 {[%clk 0:00:29.3]} 41. Rg5+
{[%clk 0:00:14.8]} 41... Kf6 {[%clk 0:00:28.9]} 42. Rxe4 {[%clk 0:00:13.8]}
42... Rfe7 {[%clk 0:00:25.1]} 43. f3 {[%clk 0:00:10.5]} 43... Rxe4+ {[%clk
0:00:24.5]} 44. fxe4 {[%clk 0:00:11.4]} 44... Rd4 {[%clk 0:00:24.7]} 45. Ke3
{[%clk 0:00:09.9]} 45... Rb4 {[%clk 0:00:24.6]} 46. Rg2 {[%clk 0:00:05.2]} 46...
Rb5 {[%clk 0:00:16.6]} 47. Kd4 {[%clk 0:00:01.6]} 47... Rb4+ {[%clk 0:00:16.2]}
48. Kd3 {[%clk 0:00:01.6]} 48... Rb3+ {[%clk 0:00:16.7]} 49. Kc4 {[%clk
0:00:01.2]} 49... Rh3 {[%clk 0:00:16.5]} 50. Kd4 {[%clk 0:00:01.1]} 50... Rxh4
{[%clk 0:00:16.7]} 51. Rf2+ {[%clk 0:00:01.4]} 51... Ke6 {[%clk 0:00:16.6]} 52.
Rg2 {[%clk 0:00:01.1]} 52... Rg4 {[%clk 0:00:16.5]} 0-1

[Event "Late-Titled-Tuesday-Blitz-September-26-2023"]
[Site "Chess.com"]
[Date "2023.09.26"]
[Round "4"]
[White "Harsha_Bharathakoti"]
[Black "tdf98pantani"]
[Result "1-0"]
[WhiteElo "2902"]
[BlackElo "2694"]
[TimeControl "180+1"]
[EndTime "14:38:44 PDT"]
[Termination "Harsha_Bharathakoti won on time"]

1. Nf3 {[%clk 0:02:59.5]} 1... d5 {[%clk 0:02:55.7]} 2. g3 {[%clk 0:02:59.6]}
2... Nd7 {[%clk 0:02:54.7]} 3. d4 {[%clk 0:02:57.5]} 3... Nb6 {[%clk 0:02:51.6]}
4. Bg2 {[%clk 0:02:57.7]} 4... Bf5 {[%clk 0:02:51.3]} 5. Nc3 {[%clk 0:02:58.1]}
5... e6 {[%clk 0:02:49.2]} 6. O-O {[%clk 0:02:46.2]} 6... Bb4 {[%clk 0:02:43]}
7. Nh4 {[%clk 0:02:30]} 7... Nf6 {[%clk 0:02:25]} 8. Nxf5 {[%clk 0:02:29.2]}
8... exf5 {[%clk 0:02:25.3]} 9. Qd3 {[%clk 0:02:28.8]} 9... Qd7 {[%clk
0:02:12.1]} 10. a3 {[%clk 0:02:19.9]} 10... Be7 {[%clk 0:02:07.5]} 11. b3 {[%clk
0:01:57.2]} 11... O-O {[%clk 0:02:05.5]} 12. Bb2 {[%clk 0:01:57.8]} 12... Rad8
{[%clk 0:02:02.1]} 13. e3 {[%clk 0:01:54.7]} 13... h5 {[%clk 0:01:58.5]} 14. Ne2
{[%clk 0:01:50.5]} 14... h4 {[%clk 0:01:55.3]} 15. c4 {[%clk 0:01:50.1]} 15...
c6 {[%clk 0:01:53.5]} 16. cxd5 {[%clk 0:01:50.2]} 16... Nbxd5 {[%clk 0:01:52.9]}
17. Rad1 {[%clk 0:01:38]} 17... Rfe8 {[%clk 0:01:50]} 18. Rfe1 {[%clk
0:01:36.4]} 18... hxg3 {[%clk 0:01:40.5]} 19. hxg3 {[%clk 0:01:36.4]} 19... Ne4
{[%clk 0:01:33.4]} 20. f3 {[%clk 0:01:28.6]} 20... Ng5 {[%clk 0:01:21.9]} 21. e4
{[%clk 0:01:27.5]} 21... fxe4 {[%clk 0:01:16.1]} 22. fxe4 {[%clk 0:01:28.4]}
22... Nf6 {[%clk 0:01:15.7]} 23. Nf4 {[%clk 0:01:17.6]} 23... Qg4 {[%clk
0:01:05]} 24. e5 {[%clk 0:01:08.2]} 24... Nh5 {[%clk 0:01:02.5]} 25. Nxh5 {[%clk
0:01:06.7]} 25... Qxh5 {[%clk 0:01:02.5]} 26. Qf5 {[%clk 0:00:30.4]} 26... g6
{[%clk 0:01:00.6]} 27. Qf4 {[%clk 0:00:22.9]} 27... Ne6 {[%clk 0:00:54.9]} 28.
Qf3 {[%clk 0:00:23.4]} 28... Qh6 {[%clk 0:00:49.2]} 29. b4 {[%clk 0:00:18.2]}
29... Rd7 {[%clk 0:00:45.1]} 30. Rf1 {[%clk 0:00:15.4]} 30... Bg5 {[%clk
0:00:45.1]} 31. Rd3 {[%clk 0:00:13.4]} 31... Red8 {[%clk 0:00:42.3]} 32. Qe4
{[%clk 0:00:07.8]} 32... Nxd4 {[%clk 0:00:33.7]} 33. Rfd1 {[%clk 0:00:02.5]}
33... Be3+ {[%clk 0:00:17.6]} 34. Qxe3 {[%clk 0:00:02.3]} 34... Qxe3+ {[%clk
0:00:13.1]} 35. Rxe3 {[%clk 0:00:03.2]} 35... Ne2+ {[%clk 0:00:12.6]} 36. Rxe2
{[%clk 0:00:03.9]} 36... Rxd1+ {[%clk 0:00:12.9]} 37. Kf2 {[%clk 0:00:04.8]}
37... R1d2 {[%clk 0:00:12.1]} 38. Bc3 {[%clk 0:00:05.2]} 38... R2d3 {[%clk
0:00:11.8]} 39. Rc2 {[%clk 0:00:04.3]} 39... Rd1 {[%clk 0:00:07.9]} 40. Bf3
{[%clk 0:00:03.8]} 40... Rb1 {[%clk 0:00:07.2]} 41. Be2 {[%clk 0:00:02.5]} 41...
Rb3 {[%clk 0:00:06.4]} 42. a4 {[%clk 0:00:03.2]} 42... Ra3 {[%clk 0:00:06.3]}
43. a5 {[%clk 0:00:03.8]} 43... b6 {[%clk 0:00:01.8]} 44. Bc4 {[%clk 0:00:02.2]}
44... b5 {[%clk 0:00:01.5]} 45. Be2 {[%clk 0:00:02.6]} 45... Rd5 {[%clk
0:00:01.1]} 46. Bf3 {[%clk 0:00:02.6]} 46... Rd3 {[%clk 0:00:01.3]} 47. Bd2
{[%clk 0:00:02.3]} 1-0

[Event "Late-Titled-Tuesday-Blitz-September-26-2023"]
[Site "Chess.com"]
[Date "2023.09.26"]
[Round "4"]
[White "Pawnpusherschessaccademy"]
[Black "Chempiblinka"]
[Result "0-1"]
[WhiteElo "2312"]
[BlackElo "2209"]
[TimeControl "180+1"]
[EndTime "14:38:46 PDT"]
[Termination "Chempiblinka won by checkmate"]

1. e4 {[%clk 0:03:00.9]} 1... c5 {[%clk 0:02:59.9]} 2. Nf3 {[%clk 0:03:00.6]}
2... Nc6 {[%clk 0:03:00]} 3. Bb5 {[%clk 0:03:00.7]} 3... e6 {[%clk 0:02:59.2]}
4. Bxc6 {[%clk 0:02:55.8]} 4... bxc6 {[%clk 0:02:59.9]} 5. d3 {[%clk 0:02:55.8]}
5... Ne7 {[%clk 0:02:59.1]} 6. h4 {[%clk 0:02:56.2]} 6... h5 {[%clk 0:02:56.1]}
7. e5 {[%clk 0:02:55.8]} 7... Nf5 {[%clk 0:02:46.9]} 8. Bg5 {[%clk 0:02:45.5]}
8... Qc7 {[%clk 0:02:41.3]} 9. Nbd2 {[%clk 0:02:39]} 9... d5 {[%clk 0:02:30.8]}
10. exd6 {[%clk 0:02:38]} 10... Bxd6 {[%clk 0:02:28.6]} 11. Ne4 {[%clk
0:02:38.5]} 11... Bf8 {[%clk 0:02:22.5]} 12. O-O {[%clk 0:02:36]} 12... f6
{[%clk 0:02:20.3]} 13. Bd2 {[%clk 0:02:27.2]} 13... e5 {[%clk 0:02:19.7]} 14.
Re1 {[%clk 0:02:21.7]} 14... Be7 {[%clk 0:02:05.8]} 15. Be3 {[%clk 0:01:40.8]}
15... Qb6 {[%clk 0:01:50.4]} 16. a3 {[%clk 0:01:34.4]} 16... a5 {[%clk
0:01:48.6]} 17. b3 {[%clk 0:01:19.5]} 17... Nd4 {[%clk 0:01:38.9]} 18. Nfd2
{[%clk 0:01:16.1]} 18... Bg4 {[%clk 0:01:31.7]} 19. f3 {[%clk 0:01:15.4]} 19...
Be6 {[%clk 0:01:28.5]} 20. Nc4 {[%clk 0:01:15.6]} 20... Qa7 {[%clk 0:01:18.3]}
21. Qd2 {[%clk 0:00:53.3]} 21... Kf7 {[%clk 0:01:00.5]} 22. Ned6+ {[%clk
0:00:45.3]} 22... Kg6 {[%clk 0:00:59.1]} 23. f4 {[%clk 0:00:44.5]} 23... Bxc4
{[%clk 0:00:22.7]} 24. Nxc4 {[%clk 0:00:43.4]} 24... exf4 {[%clk 0:00:21.1]} 25.
Bxd4 {[%clk 0:00:41.8]} 25... cxd4 {[%clk 0:00:21.3]} 26. Qxf4 {[%clk
0:00:41.1]} 26... Kf7 {[%clk 0:00:21.4]} 27. Re4 {[%clk 0:00:31.9]} 27... Rhe8
{[%clk 0:00:19.5]} 28. Rae1 {[%clk 0:00:28.6]} 28... Bf8 {[%clk 0:00:18.2]} 29.
Qf5 {[%clk 0:00:23.6]} 29... Rxe4 {[%clk 0:00:17.4]} 30. Qxe4 {[%clk 0:00:18.9]}
30... Qd7 {[%clk 0:00:16]} 31. Qf3 {[%clk 0:00:17.6]} 31... Kg8 {[%clk
0:00:13.4]} 32. Qxh5 {[%clk 0:00:16.8]} 32... Rd8 {[%clk 0:00:11.8]} 33. a4
{[%clk 0:00:15.1]} 33... Qd5 {[%clk 0:00:10.5]} 34. Qe2 {[%clk 0:00:09.2]} 34...
Bb4 {[%clk 0:00:09.6]} 35. Qe6+ {[%clk 0:00:08.8]} 35... Qxe6 {[%clk 0:00:09.8]}
36. Rxe6 {[%clk 0:00:09.3]} 36... Kf7 {[%clk 0:00:10.3]} 37. Rxc6 {[%clk
0:00:09.6]} 37... Bc3 {[%clk 0:00:10.3]} 38. Rc5 {[%clk 0:00:08.6]} 38... Kg6
{[%clk 0:00:09.6]} 39. Kf2 {[%clk 0:00:09]} 39... Re8 {[%clk 0:00:10]} 40. g4
{[%clk 0:00:08.3]} 40... Be1+ {[%clk 0:00:09.7]} 41. Kf3 {[%clk 0:00:07.6]}
41... Bxh4 {[%clk 0:00:10.4]} 42. Nd6 {[%clk 0:00:04.3]} 42... Re3+ {[%clk
0:00:09.3]} 43. Kf4 {[%clk 0:00:04.6]} 43... Bg3# {[%clk 0:00:07.8]} 0-1

[Event "Late-Titled-Tuesday-Blitz-September-26-2023"]
[Site "Chess.com"]
[Date "2023.09.26"]
[Round "4"]
[White "stolencandy13"]
[Black "artin10862"]
[Result "0-1"]
[WhiteElo "2557"]
[BlackElo "2880"]
[TimeControl "180+1"]
[EndTime "14:38:51 PDT"]
[Termination "artin10862 won on time"]

1. d4 {[%clk 0:03:00.9]} 1... g6 {[%clk 0:02:55.7]} 2. Bf4 {[%clk 0:03:00.3]}
2... d6 {[%clk 0:02:48.7]} 3. Nc3 {[%clk 0:02:59.9]} 3... Bg7 {[%clk 0:02:47.6]}
4. Nf3 {[%clk 0:02:58.4]} 4... a6 {[%clk 0:02:45]} 5. e4 {[%clk 0:02:53.1]} 5...
b5 {[%clk 0:02:43.6]} 6. Qd2 {[%clk 0:02:50.4]} 6... Bb7 {[%clk 0:02:43.7]} 7.
a3 {[%clk 0:02:50.1]} 7... Nd7 {[%clk 0:02:42.2]} 8. h4 {[%clk 0:02:33.6]} 8...
Ngf6 {[%clk 0:02:39.8]} 9. e5 {[%clk 0:02:30.3]} 9... Nd5 {[%clk 0:02:38.6]} 10.
Nxd5 {[%clk 0:02:28.7]} 10... Bxd5 {[%clk 0:02:39.5]} 11. Be2 {[%clk 0:02:25.1]}
11... h5 {[%clk 0:02:31.8]} 12. O-O-O {[%clk 0:02:18.5]} 12... Qb8 {[%clk
0:02:26.6]} 13. Ng5 {[%clk 0:02:12.7]} 13... e6 {[%clk 0:02:16.1]} 14. exd6
{[%clk 0:02:06.3]} 14... cxd6 {[%clk 0:02:15.9]} 15. Bf3 {[%clk 0:02:03.6]}
15... Nb6 {[%clk 0:02:15]} 16. Qb4 {[%clk 0:01:57.3]} 16... Bxf3 {[%clk
0:02:07]} 17. Bxd6 {[%clk 0:01:29.8]} 17... Qd8 {[%clk 0:01:11.9]} 18. gxf3
{[%clk 0:00:59.5]} 18... Nd5 {[%clk 0:01:08.3]} 19. Qc5 {[%clk 0:00:57.8]} 19...
Qd7 {[%clk 0:01:08.3]} 20. Rhe1 {[%clk 0:00:50.5]} 20... Kd8 {[%clk 0:00:58.6]}
21. Bg3 {[%clk 0:00:32.2]} 21... Bf8 {[%clk 0:00:33.8]} 22. Nxf7+ {[%clk
0:00:18]} 22... Qxf7 {[%clk 0:00:33.7]} 23. Qc6 {[%clk 0:00:18.3]} 23... Rc8
{[%clk 0:00:27]} 24. Qxa6 {[%clk 0:00:18]} 24... Qd7 {[%clk 0:00:13.8]} 25. Rxe6
{[%clk 0:00:14.6]} 25... Be7 {[%clk 0:00:13.5]} 26. Rde1 {[%clk 0:00:14.4]}
26... Rh7 {[%clk 0:00:09.8]} 27. Qa5+ {[%clk 0:00:12.3]} 27... Ke8 {[%clk
0:00:09.3]} 28. Bd6 {[%clk 0:00:11.8]} 28... Kf8 {[%clk 0:00:05.9]} 29. Bxe7+
{[%clk 0:00:10.6]} 29... Rxe7 {[%clk 0:00:06.1]} 30. Rxe7 {[%clk 0:00:08.8]}
30... Nxe7 {[%clk 0:00:07]} 31. Qd2 {[%clk 0:00:08.8]} 31... Kg7 {[%clk
0:00:05.8]} 32. Qg5 {[%clk 0:00:08.4]} 32... Nf5 {[%clk 0:00:06.2]} 33. Qf4
{[%clk 0:00:08.2]} 33... Qc7 {[%clk 0:00:04]} 34. Qd2 {[%clk 0:00:06.2]} 34...
Nxh4 {[%clk 0:00:03.2]} 35. c3 {[%clk 0:00:06.6]} 35... Nxf3 {[%clk 0:00:03.4]}
36. Qe2 {[%clk 0:00:03.9]} 36... Nxe1 {[%clk 0:00:03.7]} 37. Qxe1 {[%clk
0:00:04.8]} 37... Qf4+ {[%clk 0:00:04.2]} 38. Kb1 {[%clk 0:00:04.7]} 38... Qf5+
{[%clk 0:00:04.7]} 39. Ka1 {[%clk 0:00:04.5]} 39... Rf8 {[%clk 0:00:05.6]} 40.
Qe2 {[%clk 0:00:04.4]} 40... h4 {[%clk 0:00:05.1]} 41. f4 {[%clk 0:00:04.3]}
41... h3 {[%clk 0:00:05.3]} 42. Qe7+ {[%clk 0:00:04.6]} 42... Rf7 {[%clk
0:00:05.5]} 43. Qh4 {[%clk 0:00:04.1]} 43... Qe6 {[%clk 0:00:03.8]} 44. Kb1
{[%clk 0:00:02.3]} 44... Qe4+ {[%clk 0:00:03.8]} 45. Ka1 {[%clk 0:00:02.5]}
45... Qg2 {[%clk 0:00:04.5]} 46. f5 {[%clk 0:00:02.3]} 46... Rxf5 {[%clk
0:00:04.5]} 47. Qe7+ {[%clk 0:00:02.4]} 47... Rf7 {[%clk 0:00:05.2]} 0-1

[Event "Late-Titled-Tuesday-Blitz-September-26-2023"]
[Site "Chess.com"]
[Date "2023.09.26"]
[Round "4"]
[White "djano"]
[Black "YEIKO2017"]
[Result "1/2-1/2"]
[WhiteElo "2662"]
[BlackElo "2472"]
[TimeControl "180+1"]
[EndTime "14:38:52 PDT"]
[Termination "Game drawn by stalemate"]

1. d4 {[%clk 0:03:00.9]} 1... Nf6 {[%clk 0:02:59]} 2. Bf4 {[%clk 0:03:00]} 2...
g6 {[%clk 0:02:58.8]} 3. Nc3 {[%clk 0:02:59.3]} 3... d5 {[%clk 0:02:58.1]} 4.
Nb5 {[%clk 0:02:57.4]} 4... Na6 {[%clk 0:02:56.7]} 5. e3 {[%clk 0:02:57.5]} 5...
Bg7 {[%clk 0:02:50]} 6. Nf3 {[%clk 0:02:55.8]} 6... O-O {[%clk 0:02:45.5]} 7. h3
{[%clk 0:02:55.7]} 7... Ne4 {[%clk 0:02:42.3]} 8. c3 {[%clk 0:02:52.5]} 8... c6
{[%clk 0:02:39.9]} 9. Na3 {[%clk 0:02:52.1]} 9... f6 {[%clk 0:02:40.2]} 10. Bxa6
{[%clk 0:02:47]} 10... bxa6 {[%clk 0:02:37.9]} 11. O-O {[%clk 0:02:47.6]} 11...
a5 {[%clk 0:02:32.7]} 12. Nc2 {[%clk 0:02:43.5]} 12... Ba6 {[%clk 0:02:32]} 13.
Re1 {[%clk 0:02:43.7]} 13... e5 {[%clk 0:02:30.8]} 14. Bh2 {[%clk 0:02:41.3]}
14... Qe7 {[%clk 0:02:21.4]} 15. Rb1 {[%clk 0:02:40.5]} 15... Rad8 {[%clk
0:02:12]} 16. Nd2 {[%clk 0:02:40.3]} 16... c5 {[%clk 0:02:07.8]} 17. dxe5 {[%clk
0:02:30.8]} 17... fxe5 {[%clk 0:01:59.9]} 18. f3 {[%clk 0:02:22]} 18... Nf6
{[%clk 0:01:34.5]} 19. b4 {[%clk 0:02:17.3]} 19... axb4 {[%clk 0:01:26.6]} 20.
cxb4 {[%clk 0:02:17.6]} 20... c4 {[%clk 0:01:25.4]} 21. b5 {[%clk 0:02:11.8]}
21... Bb7 {[%clk 0:01:19.5]} 22. Nb4 {[%clk 0:02:11.3]} 22... c3 {[%clk
0:01:12.2]} 23. Nf1 {[%clk 0:02:10.4]} 23... Rfe8 {[%clk 0:00:50.2]} 24. Qb3
{[%clk 0:02:10.3]} 24... Qc5 {[%clk 0:00:49.3]} 25. Nd3 {[%clk 0:02:00.6]} 25...
Qc4 {[%clk 0:00:44.9]} 26. Nxe5 {[%clk 0:01:57]} 26... Qxb3 {[%clk 0:00:39.1]}
27. Rxb3 {[%clk 0:01:57.9]} 27... c2 {[%clk 0:00:37.5]} 28. Rc1 {[%clk
0:01:57.2]} 28... d4 {[%clk 0:00:34.3]} 29. Rxc2 {[%clk 0:01:47.3]} 29... dxe3
{[%clk 0:00:32.3]} 30. Nxe3 {[%clk 0:01:48.2]} 30... Nd5 {[%clk 0:00:26.5]} 31.
Nxd5 {[%clk 0:01:34.1]} 31... Bxd5 {[%clk 0:00:27.4]} 32. Re3 {[%clk 0:01:34.6]}
32... Bb7 {[%clk 0:00:28.3]} 33. Kf2 {[%clk 0:01:32.2]} 33... Rd5 {[%clk
0:00:23.5]} 34. Nc4 {[%clk 0:01:19.5]} 34... Rxe3 {[%clk 0:00:20.7]} 35. Kxe3
{[%clk 0:01:20.4]} 35... Bd4+ {[%clk 0:00:15.6]} 36. Ke2 {[%clk 0:01:20]} 36...
Rxb5 {[%clk 0:00:14.8]} 37. Nd6 {[%clk 0:01:19.8]} 37... Rb4 {[%clk 0:00:07.9]}
38. Nxb7 {[%clk 0:01:04.8]} 38... Rxb7 {[%clk 0:00:08.8]} 39. Kd3 {[%clk
0:01:05.5]} 39... Bb6 {[%clk 0:00:07.7]} 40. a4 {[%clk 0:00:58.4]} 40... Rd7+
{[%clk 0:00:08.1]} 41. Kc4 {[%clk 0:00:56.8]} 41... Kf7 {[%clk 0:00:08.5]} 42.
Be5 {[%clk 0:00:55.9]} 42... Ke6 {[%clk 0:00:07.8]} 43. f4 {[%clk 0:00:56.5]}
43... Kf5 {[%clk 0:00:07.6]} 44. g4+ {[%clk 0:00:56.2]} 44... Ke4 {[%clk
0:00:07.7]} 45. Kb5 {[%clk 0:00:55]} 45... Rd5+ {[%clk 0:00:06.7]} 46. Kb4
{[%clk 0:00:53.1]} 46... Rd1 {[%clk 0:00:05.7]} 47. a5 {[%clk 0:00:51.9]} 47...
Rb1+ {[%clk 0:00:05.2]} 48. Bb2 {[%clk 0:00:45.3]} 48... Bd4 {[%clk 0:00:03.5]}
49. f5 {[%clk 0:00:27.2]} 49... Rxb2+ {[%clk 0:00:04.4]} 50. Rxb2 {[%clk
0:00:27]} 50... Bxb2 {[%clk 0:00:04.1]} 51. fxg6 {[%clk 0:00:27.6]} 51... hxg6
{[%clk 0:00:04.6]} 52. h4 {[%clk 0:00:25.5]} 52... Bf6 {[%clk 0:00:03.7]} 53. h5
{[%clk 0:00:24.2]} 53... gxh5 {[%clk 0:00:04]} 54. gxh5 {[%clk 0:00:25.1]} 54...
Kf5 {[%clk 0:00:04.1]} 55. Kc4 {[%clk 0:00:22.8]} 55... Kg5 {[%clk 0:00:04.3]}
56. Kd5 {[%clk 0:00:23.7]} 56... Kxh5 {[%clk 0:00:04.6]} 57. Kd6 {[%clk
0:00:24.2]} 57... Bh4 {[%clk 0:00:04.7]} 58. Kd5 {[%clk 0:00:25.1]} 58... Bf2
{[%clk 0:00:05.1]} 59. Kc4 {[%clk 0:00:25.3]} 59... Kg5 {[%clk 0:00:05.6]} 60.
Kb5 {[%clk 0:00:26.2]} 60... Kf5 {[%clk 0:00:06.1]} 61. Ka6 {[%clk 0:00:27.1]}
61... Ke5 {[%clk 0:00:06.6]} 62. Kb5 {[%clk 0:00:28]} 62... Kd6 {[%clk 0:00:07]}
63. Ka6 {[%clk 0:00:28.9]} 63... Kc6 {[%clk 0:00:07]} 1/2-1/2

[Event "Late-Titled-Tuesday-Blitz-September-26-2023"]
[Site "Chess.com"]
[Date "2023.09.26"]
[Round "4"]
[White "HajiyevKanan"]
[Black "QuintilianoR"]
[Result "1/2-1/2"]
[WhiteElo "2510"]
[BlackElo "2660"]
[TimeControl "180+1"]
[EndTime "14:38:52 PDT"]
[Termination "Game drawn by repetition"]

1. d4 {[%clk 0:03:00.4]} 1... Nf6 {[%clk 0:02:59.2]} 2. Nf3 {[%clk 0:02:55.8]}
2... e6 {[%clk 0:02:58.5]} 3. c4 {[%clk 0:02:55.4]} 3... b6 {[%clk 0:02:56.4]}
4. g3 {[%clk 0:02:54.8]} 4... Bb7 {[%clk 0:02:55.5]} 5. Bg2 {[%clk 0:02:54.3]}
5... Bb4+ {[%clk 0:02:56.1]} 6. Bd2 {[%clk 0:02:54.4]} 6... a5 {[%clk
0:02:54.5]} 7. O-O {[%clk 0:02:54.2]} 7... O-O {[%clk 0:02:53.8]} 8. Bf4 {[%clk
0:02:54]} 8... Be7 {[%clk 0:02:43.5]} 9. Nc3 {[%clk 0:02:53.8]} 9... Ne4 {[%clk
0:02:41.7]} 10. Qc2 {[%clk 0:02:51.3]} 10... Nxc3 {[%clk 0:02:36]} 11. Qxc3
{[%clk 0:02:51.3]} 11... Be4 {[%clk 0:02:21.5]} 12. a3 {[%clk 0:02:43.8]} 12...
a4 {[%clk 0:02:11.1]} 13. Qd2 {[%clk 0:02:43.8]} 13... Nc6 {[%clk 0:01:50.5]}
14. Qe3 {[%clk 0:02:27.5]} 14... f5 {[%clk 0:01:49.7]} 15. Rad1 {[%clk
0:02:16.7]} 15... Na5 {[%clk 0:01:44.1]} 16. Nd2 {[%clk 0:02:16.1]} 16... Bxg2
{[%clk 0:01:42]} 17. Kxg2 {[%clk 0:02:17]} 17... g5 {[%clk 0:01:39.4]} 18. Be5
{[%clk 0:02:12]} 18... d6 {[%clk 0:01:38.8]} 19. Nf3 {[%clk 0:01:41.8]} 19...
dxe5 {[%clk 0:01:24.5]} 20. dxe5 {[%clk 0:01:41.6]} 20... Qe8 {[%clk 0:01:24.3]}
21. Nxg5 {[%clk 0:01:39.9]} 21... Nxc4 {[%clk 0:01:22.1]} 22. Qc1 {[%clk
0:01:38.7]} 22... Qc6+ {[%clk 0:01:08.7]} 23. f3 {[%clk 0:01:29.9]} 23... Bxg5
{[%clk 0:01:02.6]} 24. Qxg5+ {[%clk 0:01:29.7]} 24... Kh8 {[%clk 0:01:03.5]} 25.
Rc1 {[%clk 0:01:28.3]} 25... b5 {[%clk 0:01:00.4]} 26. Rfd1 {[%clk 0:01:26.4]}
26... Qc5 {[%clk 0:00:57.6]} 27. f4 {[%clk 0:01:02.3]} 27... Qe3 {[%clk
0:00:37.4]} 28. Rd7 {[%clk 0:00:30.8]} 28... Qxe2+ {[%clk 0:00:37.5]} 29. Kg1
{[%clk 0:00:27.9]} 29... Qg4 {[%clk 0:00:37.2]} 30. Qe7 {[%clk 0:00:26.7]} 30...
Qg6 {[%clk 0:00:36.3]} 31. Rxc7 {[%clk 0:00:17.3]} 31... Kg8 {[%clk 0:00:35.5]}
32. Rd1 {[%clk 0:00:15.5]} 32... Rf7 {[%clk 0:00:15.5]} 33. Qc5 {[%clk
0:00:15.7]} 33... Rxc7 {[%clk 0:00:13.9]} 34. Qxc7 {[%clk 0:00:16.6]} 34... Rf8
{[%clk 0:00:12.7]} 35. Rd7 {[%clk 0:00:13.3]} 35... Qh5 {[%clk 0:00:12.9]} 36.
Rg7+ {[%clk 0:00:07.3]} 36... Kh8 {[%clk 0:00:13.2]} 37. Kg2 {[%clk 0:00:08.2]}
37... Ne3+ {[%clk 0:00:12.5]} 38. Kf2 {[%clk 0:00:07.8]} 38... Ng4+ {[%clk
0:00:12.8]} 39. Ke1 {[%clk 0:00:06.1]} 39... Nxh2 {[%clk 0:00:12.5]} 40. Qe7
{[%clk 0:00:04.9]} 40... Nf3+ {[%clk 0:00:12.7]} 41. Kf2 {[%clk 0:00:05.5]}
41... Rc8 {[%clk 0:00:09.6]} 42. Qf6 {[%clk 0:00:04.9]} 42... Rc2+ {[%clk
0:00:09.8]} 43. Ke3 {[%clk 0:00:04.9]} 43... Re2+ {[%clk 0:00:08.1]} 44. Kxe2
{[%clk 0:00:04.3]} 44... Nxe5+ {[%clk 0:00:08.3]} 45. Ke3 {[%clk 0:00:04.7]}
45... Qf3+ {[%clk 0:00:07.1]} 46. Kd4 {[%clk 0:00:04]} 46... Qd5+ {[%clk
0:00:07.6]} 47. Ke3 {[%clk 0:00:03.6]} 47... Qe4+ {[%clk 0:00:08.1]} 48. Kf2
{[%clk 0:00:04.1]} 48... Nd3+ {[%clk 0:00:08.1]} 49. Kg1 {[%clk 0:00:03.5]}
49... Qe1+ {[%clk 0:00:08.4]} 50. Kh2 {[%clk 0:00:04.2]} 50... Qe2+ {[%clk
0:00:09.3]} 51. Kh3 {[%clk 0:00:04.3]} 51... Qh5+ {[%clk 0:00:09.8]} 52. Kg2
{[%clk 0:00:03.6]} 52... Qe2+ {[%clk 0:00:10.7]} 53. Kh3 {[%clk 0:00:04.1]}
53... Qh5+ {[%clk 0:00:10.7]} 54. Kg2 {[%clk 0:00:04.7]} 54... Qe2+ {[%clk
0:00:10.9]} 55. Kh3 {[%clk 0:00:05.4]} 1/2-1/2